{"text_format":"1","workbook":"xlsx","n_sheets":3,"sheets":["نموذج","المحذوفين ","العملاء"],"not_rendered":{"charts":0,"images":0,"macros":1,"external_links":0,"defined_names":1,"comments":0,"pivot_tables":0},"unopened":[],"bounds":{"document_bytes":16777216,"sheet_cells":100000,"rows_first":2000,"rows_last":500,"rows_between":2000,"halvings":0,"cell_chars":16384,"cell_head_chars":4096},"cells_cut":0,"cells_raw":0,"read":"whole","date_system":"1900"}

{"sheet":"نموذج","index":0,"n_rows":34,"n_cols":10,"rows_kept":34,"cut":false,"hidden":true,"merged":[[2,0,3,0],[0,0,1,1],[0,2,1,5],[0,6,1,6],[0,7,1,9],[2,1,2,4],[2,5,2,8],[2,9,3,9]]}
["اسم\nالعميل",null,"mohamed",null,null,null,"الرصيد  الحالى",1000000]
[]
["م","مسحوبـــــــــــات",null,null,null,"تنزيـــــــــــــــــــــــــلات",null,null,null,"الرصيد"]
[null,"المبلغ","البيان","التاريخ","اليوم","المبلغ","البيان","التاريخ","اليوم"]
[1,{"$f":"H1","v":1000000},"رصيد اول الفترة","2023-01-01",{"$f":"IF(D5=\"\",\"\",TEXT(D5,\"ddd\"))","v":"الأحد"},null,null,null,{"$f":"IF(H5=\"\",\"\",TEXT(H5,\"ddd\"))","v":""},{"$f":"B5-F5","v":1000000}]
[2,null,null,null,{"$f":"IF(D6=\"\",\"\",TEXT(D6,\"ddd\"))","v":""},null,null,null,{"$f":"IF(H6=\"\",\"\",TEXT(H6,\"ddd\"))","v":""},{"$f":"J5+B6-F6","v":1000000}]
[3,null,null,null,"",null,null,null,"",{"$f":"J6+B7-F7","v":1000000}]
[4,null,null,null,"",null,null,null,"",1000000]
[5,null,null,null,"",null,null,null,"",1000000]
[6,null,null,null,"",null,null,null,"",1000000]
[7,null,null,null,"",null,null,null,"",1000000]
[8,null,null,null,"",null,null,null,"",1000000]
[9,null,null,null,"",null,null,null,"",1000000]
[10,null,null,null,"",null,null,null,"",1000000]
[11,null,null,null,"",null,null,null,"",1000000]
[12,null,null,null,"",null,null,null,"",1000000]
[13,null,null,null,"",null,null,null,"",1000000]
[14,null,null,null,"",null,null,null,"",1000000]
[15,null,null,null,"",null,null,null,"",1000000]
[16,null,null,null,"",null,null,null,"",1000000]
[17,null,null,null,"",null,null,null,"",1000000]
[18,null,null,null,"",null,null,null,"",1000000]
[19,null,null,null,"",null,null,null,"",1000000]
[20,null,null,null,"",null,null,null,"",1000000]
[21,null,null,null,"",null,null,null,"",1000000]
[22,null,null,null,"",null,null,null,"",1000000]
[23,null,null,null,"",null,null,null,"",1000000]
[24,null,null,null,"",null,null,null,"",1000000]
[25,null,null,null,"",null,null,null,"",1000000]
[26,null,null,null,"",null,null,null,"",1000000]
[27,null,null,null,"",null,null,null,"",1000000]
[28,null,null,null,"",null,null,null,"",1000000]
[29,null,null,null,"",null,null,null,"",1000000]
[30,null,null,null,"",null,null,null,"",1000000]

{"sheet":"المحذوفين ","index":1,"n_rows":1,"n_cols":3,"rows_kept":1,"cut":false,"hidden":false,"merged":[]}
["اسم العميل ","الرصيد","تاريخ الحذف"]

{"sheet":"العملاء","index":2,"n_rows":7,"n_cols":7,"rows_kept":7,"cut":false,"hidden":false,"merged":[]}
[" العملاء","كود"," اسم العميل","الرصيد الحالى",null,null,100]
["محمد رجب",{"$f":"MAX(ROW($B1:B2))","v":1},"محمد رجب",50000,{"$f":"IFERROR(INDIRECT(\"'\"&C2&\"'!h1\"),\"\")","v":""}]
[null,null,null,null,{"$f":"IFERROR(INDIRECT(\"'\"&C3&\"'!h1\"),\"\")","v":""}]
[null,null,null,null,""]
[null,null,null,null,""]
[null,null,null,null,{"$f":"IFERROR(INDIRECT(\"'\"&C7&\"'!h1\"),\"\")","v":""}]
[null,null,null,null,""]